Cogmind - Beta 12 @@@ ROGUE MODE // 2023.04.19 @ 23:33:27 Player: MoonDog Result: Self-destructed Performance ------------- Evolutions (1) 500 Regions Visited (2) 400 Robots Destroyed (11) 55 Value Destroyed (329) 329 Prototype IDs (0) 0 Alien Tech Used (0) 0 Bonus (0) 0 TOTAL SCORE: 1284 Bonus ------- None Cogmind --------- Core Integrity 377/400 Matter 53/300 Energy 123/125 System Corruption 0% Temperature Cool (0) Movement Rolling (80) Location -9/Materials Parts ------- > --- POWER (1) -------- Light Ion Engine > --- PROPULSION (2) --- Wheel Wheel > --- UTILITY (4) ------ Medium Storage Unit Visual Processing Unit Targeting Computer Shield Generator > --- WEAPON (2) ------- EM Pulse Gun Grenade Launcher > --- INVENTORY (10) --- ECM Suite Core Shielding Peak State ------------ > --- POWER ------------ Light Ion Engine > --- PROPULSION ------- Wheel Wheel > --- UTILITY ---------- Medium Storage Unit Visual Processing Unit Targeting Computer Shield Generator > --- WEAPON ----------- EM Pulse Gun Grenade Launcher > --- INVENTORY -------- ECM Suite Core Shielding [Rating: 11] Favorites ----------- Power Light Ion Engine Engine Light Ion Engine Propulsion Wheel Wheel Wheel Utility Targeting Computer Device Shield Generator Storage Medium Storage Unit Processor Targeting Computer Weapon EM Pulse Gun Energy Gun EM Pulse Gun Launcher Grenade Launcher Build | -11 -10 -9 ------- Run | Jun Mat Mat Slots Evolved 2 | . . 2 Power . | . . . Propulsion . | . . . Utility 2 | . . 2 Weapon . | . . . Parts Attached 10 | 3 5 2 Power 1 | . 1 . Engine 1 | . 1 . Core . | . . . Reactor . | . . . Propulsion 2 | 2 . . Treads . | . . . Leg . | . . . Wheel 2 | 2 . . Hover . | . . . Flight . | . . . Utility 5 | . 3 2 Device 2 | . 1 1 Storage 1 | . 1 . Processor 2 | . 1 1 Hackware . | . . . Protection . | . . . Artifact . | . . . Weapon 2 | 1 1 . Energy Gun 1 | 1 . . Energy Cannon . | . . . Ballistic Gun . | . . . Ballistic Cannon . | . . . Launcher 1 | . 1 . Special Weapon . | . . . Impact Weapon . | . . . Slashing Weapon . | . . . Piercing Weapon . | . . . Special Melee Weapon . | . . . Unidentified Prototypes . | . . . Parts Lost . | . . . Power . | . . . Propulsion . | . . . Utility . | . . . Weapon . | . . . Highest Loss Streak . | . . . To Critical Strikes . | . . . Average Slot Usage (%) 89 | . 91 88 Engine 10 | . 10 11 Wheel 24 | . 28 22 Device 3 | . 4 3 Storage 9 | . 7 11 Processor 16 | . 12 18 Energy Gun 12 | . 14 11 Launcher 11 | . 12 11 Naked Turns . | . . . Heaviest Build 20 | 2 18 20 Greatest Support 20 | 3 20 20 Greatest Overweight (x) 1 | . 1 . Average Overweight (x) . | . . . Largest Inventory Capacity 10 | 5 10 10 Average Capacity 8 | 5 7 10 Most Carried 3 | 1 2 3 Average Carried 1 | . 1 2 Final Capacity 10 | 5 10 10 Final Carried 2 | 1 2 2 Class Distribution -------------------- 100% | Mutant Dominant Class ---------------- Mutant | -10/Materials Mutant | -9/Materials Resources | -11 -10 -9 ----------- Run | Jun Mat Mat Matter Collected 143 | 107 . 36 Remotely . | . . . Salvage Created 261 | 27 . 234 Parts 20 | 4 . 16 Haulers Intercepted . | . . . Recyclers Shooed . | . . . Parts Field Recycled . | . . . Retrieved Matter . | . . . Parts Self-Destructed . | . . . Prevented . | . . . Kills | -11 -10 -9 ------- Run | Jun Mat Mat Combat Hostiles Destroyed 7 | . . 7 Guns 1 | . . 1 AOE 6 | . . 6 Classes Destroyed 6 | 1 . 5 Builder 1 | . . 1 Tunneler 1 | 1 . . Recycler 1 | . . 1 Watcher 1 | . . 1 Grunt 6 | . . 6 Sentry 1 | . . 1 Best Kill Streak 5 | 1 . 5 Combat Bots Only 4 | . . 4 Max Kills in Single Turn 3 | 1 . 3 Gunslinging . | . . . Exploded 2 | . . 2 Melee . | . . . Uniques/NPCs Destroyed . | . . . Combat | -11 -10 -9 -------- Run | Jun Mat Mat Damage Taken 117 | . . 117 Core 23 | . . 23 Absorbed by Shields 14 | . . 14 Core Remaining (%) 100 | 100 100 . Volleys Fired 14 | 1 . 13 Largest 2 | 1 . 2 Hottest 70 | 40 . 70 Shots Fired 23 | 1 . 22 Gun 14 | 1 . 13 Cannon . | . . . Launcher 9 | . . 9 Special . | . . . Kinetic . | . . . Thermal . | . . . Explosive 9 | . . 9 Electromagnetic 14 | 1 . 13 Robot Hit Streak 2 | 1 . 2 Robot Miss Streak 1 | . . 1 Penetration Max . | . . . Secondary Targets . | . . . Shots Hit Robots 5 | 1 . 4 Core Hits 19 | 1 . 18 Critical Kills . | . . . Critical Parts Destroyed . | . . . Critical Strikes . | . . . Melee Attacks . | . . . Impact . | . . . Slashing . | . . . Piercing . | . . . Sneak Attacks . | . . . Combat Hostiles . | . . . Follow-up Attacks . | . . . Damage Inflicted 1112 | 15 . 1097 Guns 117 | 15 . 102 Cannons . | . . . Explosions 995 | . . 995 Melee . | . . . Ramming . | . . . Kinetic . | . . . Thermal 464 | . . 464 Explosive 531 | . . 531 Electromagnetic 117 | 15 . 102 Impact . | . . . Slashing . | . . . Piercing . | . . . Highest Corruption . | . . . Average Corruption . | . . . Corruption Purged . | . . . Corruption Blocked . | . . . Overload Shots . | . . . Overflow Damage 126 | . . 126 Projectiles . | . . . Explosions 126 | . . 126 Melee . | . . . Knockbacks . | . . . Impact . | . . . Kinetic . | . . . Secondary . | . . . Self-Inflicted Damage . | . . . Shots . | . . . Rammed . | . . . Targets Rammed . | . . . Kicked . | . . . Crushed . | . . . Highest Temperature 24 | . . 24 Average Temperature 12 | . . 12 Received Heat Transfer 45 | . . 45 Siege Activations . | . . . Robots Corrupted . | . . . Combat Hostiles . | . . . Parts Fried . | . . . Impact Corruptions . | . . . Robots Melted . | . . . Combat Hostiles . | . . . Parts Melted . | . . . Heat Transferred 300 | . . 300 Parts Sabotaged . | . . . Parts Stolen . | . . . Parts Stripped . | . . . Power Chain Reactions . | . . . Missiles Intercepted . | . . . Alert | -11 -10 -9 ------- Run | Jun Mat Mat Peak Influence 337 | 5 3 337 Initial 3 | . 3 . Average 84 | 1 3 155 Maximum Alert Level 1 | . . 1 Low Security (%) 88 | 100 100 78 Level 1 11 | . . 21 Level 2 . | . . . Level 3 . | . . . Level 4 . | . . . Level 5 . | . . . High Security . | . . . Max Security . | . . . Squads Dispatched 1 | . 1 . Investigation . | . . . Extermination . | . . . Reinforcement 1 | . 1 . Assault . | . . . Garrison . | . . . Intercept . | . . . Searches Triggered . | . . . Construction Impeded . | . . . Haulers Reinforced . | . . . Active Scanning Responses . | . . . Cargo Convoy Interrupts . | . . . Stealth | -11 -10 -9 --------- Run | Jun Mat Mat Distress Signals 2 | . . 2 Communications Jammed . | . . . Distress Signals . | . . . Times Spotted 15 | . 1 14 Peak Tracking Total 7 | . 1 7 Tactical Retreats 1 | . . 1 Traps | -11 -10 -9 ------- Run | Jun Mat Mat Traps Triggered . | . . . Indirectly . | . . . Trap Hack Attempts . | . . . Triggered . | . . . Disarmed . | . . . Reprogrammed . | . . . Reused . | . . . Traps Extracted . | . . . Installed . | . . . Triggered . | . . . Machines | -11 -10 -9 ---------- Run | Jun Mat Mat Machines Disabled 2 | . . 2 Max in Single Turn 2 | . . 2 Machines Repaired . | . . . Machines Sabotaged . | . . . Overloaded Fab Kills . | . . . Hacking | -11 -10 -9 --------- Run | Jun Mat Mat Machines Accessed 1 | . 1 . Terminals 1 | . 1 . Fabricators . | . . . Repair Stations . | . . . Recycling Units . | . . . Scanalyzers . | . . . Garrison Access . | . . . Total Hacks 2 | . 2 . Successful . | . . . Failed 2 | . 2 . Catastrophic . | . . . Database Lockouts . | . . . Manual 2 | . 2 . Terminals 2 | . 2 . Fabricators . | . . . Repair Stations . | . . . Recycling Units . | . . . Scanalyzers . | . . . Garrison Access . | . . . Terminal Hacks . | . . . Fabricator Hacks . | . . . Repair Station Hacks . | . . . Recycling Unit Hacks . | . . . Scanalyzer . | . . . Garrison Access Hacks . | . . . Unauthorized Hacks . | . . . Terminals . | . . . Fabricators . | . . . Repair Stations . | . . . Recycling Units . | . . . Scanalyzers . | . . . Garrison Access . | . . . Data Cores Recovered . | . . . Used . | . . . Hacking Detections 1 | . 1 . Full Trace Events . | . . . Feedback Events . | . . . Feedback Blocked . | . . . Robot Schematics Acquired . | . . . Robots Built . | . . . Authchips . | . . . Time . | . . . Total Robot Build Rating . | . . . Part Schematics Acquired . | . . . Parts Built . | . . . Authchips . | . . . Time . | . . . Total Part Build Rating . | . . . Parts Repaired . | . . . Time . | . . . Parts Recycled . | . . . Recycled Matter . | . . . Retrieved Matter . | . . . Retrieved Components . | . . . Parts Scanalyzed . | . . . Part Schematics Acquired . | . . . Parts Damaged . | . . . Bothacking | -11 -10 -9 ------------ Run | Jun Mat Mat Used RIF Installer . | . . . Robots Hacked . | . . . Non-combat . | . . . Combat . | . . . Robot Hacks Applied . | . . . Relay Couplers Released . | . . . Fabnet Peak Effective % . | . . . Robots Rewired . | . . . Allies Hacked . | . . . Hacks Repelled . | . . . Allies | -11 -10 -9 -------- Run | Jun Mat Mat Total Allies . | . . . Largest Group . | . . . Highest-Rated Group . | . . . Highest-Rated Ally . | . . . Total Orders . | . . . Ally Attacks . | . . . Total Damage . | . . . Kills . | . . . Allies Corrupted . | . . . Allies Melted . | . . . Intel | -11 -10 -9 ------- Run | Jun Mat Mat Robot Analysis Total . | . . . Derelict Logs Recovered . | . . . Drone Launches . | . . . Drone Recoveries . | . . . Exploration | -11 -10 -9 ------------- Run | Jun Mat Mat Turns Passed 250 | 19 97 134 Spaces Moved 256 | 23 115 118 Core 38 | 23 15 . Treads . | . . . Legs . | . . . Wheels 218 | . 100 118 Hover . | . . . Flight . | . . . Fastest Speed 50 | 50 50 80 Average Speed 76 | 50 77 80 Slowest Speed 100 | 50 100 80 Overloaded Moves . | . . . Propulsion Burnouts . | . . . Robots Hopped . | . . . Cave-ins Triggered . | . . . Exploration Rate (%) 13 | 2 22 15 Regions Visited 2 Branch Regions . Pre-discovered Areas . | . . . Known Exits Taken . | . . . Unknown Exits Taken 2 | 1 1 . Scrap Searched . | . . . Spaces Dug . | . . . Terrain Destroyed 95 | . . 95 Melee . | . . . Projectile . | . . . AOE 95 | . . 95 Terrain Rammed . | . . . Walls Destroyed . | . . . Machines Disabled . | . . . Actions | -11 -10 -9 --------- Run | Jun Mat Mat Total 283 | 27 121 135 Wait . | . . . Move 254 | 22 114 118 Hop . | . . . Pick Up 3 | 1 1 1 Fast Attach 9 | 3 4 2 Attach 1 | . 1 . Detach 1 | . 1 . Swap . | . . . Drop 1 | . . 1 Fire 14 | 1 . 13 Melee . | . . . Ram . | . . . Kick . | . . . Crush . | . . . Escape Stasis . | . . . Rewire . | . . . Trap . | . . . Miscellaneous . | . . . Route ------- -11/Junkyard -10/Materials -9/Materials History --------- Turn | Location | Event 8 | -11/Junkyard | Discovered new exit (range 15) 20 | -11/Junkyard | Entered Materials 114 | -10/Materials | Discovered new exit (range 4) 117 | -10/Materials | Entered another Materials area 117 | -9/Materials | Evolved 2 slots: Utility x2 251 | -9/Materials | Self-destructed Last Messages --------------- 00226_ Destroyed Hover Unit. 00226_ Destroyed Lgt. Ion Engine. 00226_ U-05 Engineer lays Concrete. 00227_ U-05 Engineer builds a Wall. 00228_ G-34 Mercenary destroyed. 00229_ The unstable cave ceiling collapses. 00229_ R-06 Scavenger collects Com. Wheel. 00231_ U-05 Engineer lays Concrete. 00233_ R-06 Scavenger collects Sml. Laser. 00234_ K-01 Serf collects debris. 00234_ R-06 Scavenger collects Sml. Storage Unit. 00235_ The unstable cave ceiling collapses. 00235_ U-05 Engineer lays Concrete. 00236_ R-06 Scavenger collects Lgt. Ion Engine. 00237_ U-05 Engineer lays Concrete. 00238_ K-01 Serf collects debris. 00240_ K-01 Serf cleans the Hadron Collector. 00246_ W-16 Scout sends out distress signal. 00251_ Connecting with Terminal... 00251_ Current location identified: Materials Map ----- +----------------------------------------------------+ | | | | | | | | | | | ?????????????????????????????????????????????????? | | ?????????????????????????????????????????????????? | | ?????????????????????????????????????????????????? | | ?????????????????????????????????????????????????? | | ?????????????????????????????????????????????????? | | ?????????????????????????????????????????????????? | | ?????????????????????????????????????????????????? | | ?????????????????????????????????????????????????? | | ?????????????????????###?????????????????????????? | | ?????????????????????# ?????????????????????????? | | ????????????????????? ?????????????????????????? | | ?????????????????????? ?????????????????????????? | | ?????????????????????? ????????????????????????? | | ??????????????????????# Y????????????????????????? | | ??????????????????????# ????????????????????????? | | ??????????????????????# ????????????????????????? | | ?????????????"""??????# ????????????????????????? | | ?????????????""" ??## ##??????????????????????? | | ????????????#""" # w #######+####### +?????? | | ????????????? + #?????? | | ???????????????????? #w T@ #?????? | | ???????????????????? # #######+#######+#??????? | | ???????????????????? # ####??# #??????????? | | ???????????????????? # ##????# """" #??????????? | | ????????????????????# #????# """" #??????????? | | ????????????????????# #????# """" #??????????? | | ????????????????????# #????# #??????????? | | ????????????????????# #????# #??????????? | | ????????????????????# ###### #??????????? | | ????????????????????# ## # [[ #??????????? | | ????????????????????# ## " [[ #??????????? | | ????????????????????# """#####??????????? | | ????????????????##### " """####???????????? | | ??###+########### #???????????? | | #???????????? | | #???????????? | | % ! #???????????? | | ############## ### %! #???????????? | | ???????????????###### % ## "#####???????????? | | ?????????????? """ # ????????????? | | ????????????? """"" # ## "????????????? | | ????????????? """"" # ###?# ""?########??? | | ???????????"" """"" ##???# """# """ #??? | | ????????# "R """ # ##????# # """ #??? | | ????????? """ + #?????# """# """ #??? | +----------------------------------------------------+ Best States ------------- Heat Dissipation 28 Energy Generation 10 Energy Capacity 125 Matter Stores 177 Matter Capacity 300 Sight Range 18 Terrain Scan Density 10 Evasion (%) 50 Targeting Accuracy 5 Item Schematics ----------------- None Robot Schematics ------------------ None Fabricated ------------ Nothing Alien Tech Used ----------------- None Achievements -------------- None Challenges ------------ None Game ------ Seed MiningComponentMultirail Manual? 0 Play Time 00:06:22 Cumulative 118.7 hours Start 2023.04.19 @ 22:58:06 End 2023.04.19 @ 23:33:27 Sessions 3 Manual Loads 0 Difficulty Rogue Special Mode None Game No. 98 Rogue 98 Adventurer 0 Explorer 0 Win Type - Total 1 Types 1/0/0/0/0/0/0/0/0 Lore% 38 Gallery% 53 Achievement% 46 Wizard Run 0 Options --------- ASCII 0 Keyboard 0 Movement Mouse Keybinds 0 Fullscreen 0 Font 20/Cog Map View 183x50 Tactical HUD 1 Map Filters NONE Filters NONE Steam 1 RUN: 3757a688-990e-4967-9fd4-55ab86d66e7f